Workbook

Sheet Blad1
A1: FCUD patronale bijdrage 0,05% kinderopvang - koninklijk besluit 19 augustus 1997 - bijzonder reglement 2 september 1997.
A2: Barema's van toepassing vanaf 1 juni 2011
E3: index | F3: 1.546
A4: attaché (Niveau A - regionale coördinator - Master)
A5: ancien. | B5: basis '95 | C5: maand | D5: jaar | E5: H&S /mnd | F5: H&S/jaar | G5: V.G. | H5: E.P. | I5: TOT. | J5: TOT - V.G.
A6: 0 | B6: 21880 | C6: =ROUND(D6/12,2) -> 2818.87 | D6: =ROUND(B6*$F$3,2) -> 33826.48 | E6: 0 | F6: =E6*12 -> 0 | G6: =(C6+E6)*0.92 -> 2593.3604 | H6: =ROUND(662.7+2.5%*(D6+F6),2) -> 1508.36 | I6: =SUM(D6,F6,G6,H6) -> 37928.2004 | J6: =SUM(D6,F6,H6) -> 35334.84
A7: 1 | B7: 22325 | C7: 2876.2 | D7: 34514.45 | E7: 0 | F7: =E7*12 -> 0 | G7: =(C7+E7)*0.92 -> 2646.104 | H7: =ROUND(662.7+2.5%*(D7+F7),2) -> 1525.56 | I7: =SUM(D7,F7,G7,H7) -> 38686.114 | J7: =SUM(D7,F7,H7) -> 36040.01
A8: 2 | B8: 22770 | C8: 2933.54 | D8: 35202.42 | E8: 0 | F8: 0 | G8: 2698.8568 | H8: 1542.76 | I8: 39444.0368 | J8: 36745.18
A9: 3 | B9: 23215 | C9: 2990.87 | D9: 35890.39 | E9: 0 | F9: 0 | G9: 2751.6004 | H9: 1559.96 | I9: 40201.9504 | J9: 37450.35
A10: 4 | B10: 23660 | C10: 3048.2 | D10: 36578.36 | E10: 0 | F10: 0 | G10: 2804.344 | H10: 1577.16 | I10: 40959.864 | J10: 38155.52
A11: 5 | B11: 24105 | C11: 3105.53 | D11: 37266.33 | E11: 0 | F11: 0 | G11: 2857.0876 | H11: 1594.36 | I11: 41717.7776 | J11: 38860.69
A12: 6 | B12: 24550 | C12: 3162.86 | D12: 37954.3 | E12: 0 | F12: 0 | G12: 2909.8312 | H12: 1611.56 | I12: 42475.6912 | J12: 39565.86
A13: 7 | B13: 24995 | C13: 3220.19 | D13: 38642.27 | E13: 0 | F13: 0 | G13: 2962.5748 | H13: 1628.76 | I13: 43233.6048 | J13: 40271.03
A14: 8 | B14: 25440 | C14: 3277.52 | D14: 39330.24 | E14: 0 | F14: 0 | G14: 3015.3184 | H14: 1645.96 | I14: 43991.5184 | J14: 40976.2
A15: 9 | B15: 25885 | C15: 3334.85 | D15: 40018.21 | E15: 0 | F15: 0 | G15: 3068.062 | H15: 1663.16 | I15: 44749.432 | J15: 41681.37
A16: 10 | B16: 26330 | C16: 3392.18 | D16: 40706.18 | E16: 0 | F16: =E16*12 -> 0 | G16: 3120.8056 | H16: 1680.35 | I16: =SUM(D16,F16,G16,H16) -> 45507.3356 | J16: =SUM(D16,F16,H16) -> 42386.53
A17: 11 | B17: 26775 | C17: 3449.51 | D17: 41394.15 | E17: 0 | F17: 0 | G17: 3173.5492 | H17: 1697.55 | I17: 46265.2492 | J17: 43091.7
A18: 12 | B18: 27220 | C18: 3506.84 | D18: 42082.12 | E18: 0 | F18: 0 | G18: 3226.2928 | H18: 1714.75 | I18: 47023.1628 | J18: 43796.87
A19: 13 | B19: 27665 | C19: =ROUND(D19/12,2) -> 3564.17 | D19: 42770.09 | E19: 0 | F19: 0 | G19: 3279.0364 | H19: 1731.95 | I19: 47781.0764 | J19: 44502.04
A20: 14 | B20: 28110 | C20: 3621.51 | D20: 43458.06 | E20: 0 | F20: 0 | G20: 3331.7892 | H20: 1749.15 | I20: 48538.9992 | J20: 45207.21
A21: 15 | B21: 28555 | C21: 3678.84 | D21: 44146.03 | E21: 0 | F21: 0 | G21: 3384.5328 | H21: 1766.35 | I21: 49296.9128 | J21: 45912.38
A22: 16 | B22: 29000 | C22: 3736.17 | D22: 44834 | E22: 0 | F22: =E22*12 -> 0 | G22: =(C22+E22)*0.92 -> 3437.2764 | H22: 1783.55 | I22: =SUM(D22,F22,G22,H22) -> 50054.8264 | J22: =SUM(D22,F22,H22) -> 46617.55
A23: 17 | B23: 29445 | C23: 3793.5 | D23: =ROUND(B23*$F$3,2) -> 45521.97 | E23: 0 | F23: =E23*12 -> 0 | G23: =(C23+E23)*0.92 -> 3490.02 | H23: 1800.75 | I23: =SUM(D23,F23,G23,H23) -> 50812.74 | J23: =SUM(D23,F23,H23) -> 47322.72
A24: 18 | B24: 29890 | C24: 3850.83 | D24: 46209.94 | E24: 0 | F24: =E24*12 -> 0 | G24: =(C24+E24)*0.92 -> 3542.7636 | H24: 1817.95 | I24: =SUM(D24,F24,G24,H24) -> 51570.6536 | J24: =SUM(D24,F24,H24) -> 48027.89
A25: 19 | B25: 30335 | C25: =ROUND(D25/12,2) -> 3908.16 | D25: =ROUND(B25*$F$3,2) -> 46897.91 | E25: 0 | F25: =E25*12 -> 0 | G25: =(C25+E25)*0.92 -> 3595.5072 | H25: 1835.15 | I25: =SUM(D25,F25,G25,H25) -> 52328.5672 | J25: =SUM(D25,F25,H25) -> 48733.06
A26: 20 | B26: 30780 | C26: =ROUND(D26/12,2) -> 3965.49 | D26: =ROUND(B26*$F$3,2) -> 47585.88 | E26: 0 | F26: =E26*12 -> 0 | G26: =(C26+E26)*0.92 -> 3648.2508 | H26: 1852.35 | I26: =SUM(D26,F26,G26,H26) -> 53086.4808 | J26: =SUM(D26,F26,H26) -> 49438.23
A27: technisch deskundige (Niveau B - lokale coördinator - Bachelor)
A28: ancien. | B28: basis '95 | C28: maand | D28: jaar | E28: H&S /mnd | F28: H&S/jaar | G28: V.G. | H28: E.P. | I28: TOT. | J28: TOT - V.G.
A29: 0 | B29: 16804 | C29: =ROUND(D29/12,2) -> 2164.92 | D29: =ROUND(B29*$F$3,2) -> 25978.98 | E29: 23.19 | F29: =E29*12 -> 278.28 | G29: =(C29+E29)*0.92 -> 2013.0612 | H29: =ROUND(662.7+2.5%*(D29+F29),2) -> 1319.13 | I29: =SUM(D29,F29,G29,H29) -> 29589.4512 | J29: =SUM(D29,F29,H29) -> 27576.39
A30: 1 | B30: 17057 | C30: =ROUND(D30/12,2) -> 2197.51 | D30: 26370.12 | E30: 23.19 | F30: =E30*12 -> 278.28 | G30: 2043.044 | H30: =ROUND(662.7+2.5%*(D30+F30),2) -> 1328.91 | I30: =SUM(D30,F30,G30,H30) -> 30020.354 | J30: =SUM(D30,F30,H30) -> 27977.31
A31: 2 | B31: 17310 | C31: 2230.11 | D31: 26761.26 | E31: 23.19 | F31: 278.28 | G31: 2073.036 | H31: 1338.69 | I31: 30451.266 | J31: 28378.23
A32: 3 | B32: 17563 | C32: 2262.7 | D32: 27152.4 | E32: 23.19 | F32: 278.28 | G32: 2103.0188 | H32: 1348.47 | I32: 30882.1688 | J32: 28779.15
A33: 4 | B33: 17563 | C33: 2262.7 | D33: 27152.4 | E33: 23.19 | F33: 278.28 | G33: 2103.0188 | H33: 1348.47 | I33: 30882.1688 | J33: 28779.15
A34: 5 | B34: 17856 | C34: 2300.45 | D34: 27605.38 | E34: 23.19 | F34: 278.28 | G34: 2137.7488 | H34: 1359.79 | I34: 31381.1988 | J34: 29243.45
A35: 6 | B35: 17856 | C35: 2300.45 | D35: 27605.38 | E35: 23.19 | F35: 278.28 | G35: 2137.7488 | H35: 1359.79 | I35: 31381.1988 | J35: 29243.45
A36: 7 | B36: 18247 | C36: 2350.82 | D36: 28209.86 | E36: 23.19 | F36: 278.28 | G36: 2184.0892 | H36: 1374.9 | I36: 32047.1292 | J36: 29863.04
A37: 8 | B37: 18247 | C37: 2350.82 | D37: 28209.86 | E37: 23.19 | F37: 278.28 | G37: 2184.0892 | H37: 1374.9 | I37: 32047.1292 | J37: 29863.04
A38: 9 | B38: 18920 | C38: 2437.53 | D38: 29250.32 | E38: 0 | F38: 0 | G38: 2242.5276 | H38: 1393.96 | I38: 32886.8076 | J38: 30644.28
A39: 10 | B39: 18920 | C39: 2437.53 | D39: 29250.32 | E39: 0 | F39: 0 | G39: 2242.5276 | H39: 1393.96 | I39: 32886.8076 | J39: 30644.28
A40: 11 | B40: 19593 | C40: 2524.23 | D40: 30290.78 | E40: 0 | F40: 0 | G40: 2322.2916 | H40: 1419.97 | I40: 34033.0416 | J40: 31710.75
A41: 12 | B41: 19593 | C41: 2524.23 | D41: 30290.78 | E41: 0 | F41: 0 | G41: 2322.2916 | H41: 1419.97 | I41: 34033.0416 | J41: 31710.75
A42: 13 | B42: 20218 | C42: =ROUND(D42/12,2) -> 2604.75 | D42: 31257.03 | E42: 0 | F42: 0 | G42: =(C42+E42)*0.92 -> 2396.37 | H42: 1444.13 | I42: =SUM(D42,F42,G42,H42) -> 35097.53 | J42: =SUM(D42,F42,H42) -> 32701.16
A43: 14 | B43: 20218 | C43: 2604.75 | D43: 31257.03 | E43: 0 | F43: 0 | G43: 2396.37 | H43: 1444.13 | I43: 35097.53 | J43: 32701.16
A44: 15 | B44: 20843 | C44: 2685.27 | D44: 32223.28 | E44: 0 | F44: 0 | G44: 2470.4484 | H44: 1468.28 | I44: 36162.0084 | J44: 33691.56
A45: 16 | B45: 20843 | C45: 2685.27 | D45: 32223.28 | E45: 0 | F45: =E45*12 -> 0 | G45: 2470.4484 | H45: 1468.28 | I45: 36162.0084 | J45: 33691.56
A46: 17 | B46: 21468 | C46: 2765.79 | D46: =ROUND(B46*$F$3,2) -> 33189.53 | E46: 0 | F46: =E46*12 -> 0 | G46: 2544.5268 | H46: 1492.44 | I46: 37226.4968 | J46: 34681.97
A47: 18 | B47: 21468 | C47: 2765.79 | D47: 33189.53 | E47: 0 | F47: =E47*12 -> 0 | G47: 2544.5268 | H47: 1492.44 | I47: 37226.4968 | J47: 34681.97
A48: 19 | B48: 22093 | C48: =ROUND(D48/12,2) -> 2846.32 | D48: =ROUND(B48*$F$3,2) -> 34155.78 | E48: 0 | F48: =E48*12 -> 0 | G48: =(C48+E48)*0.92 -> 2618.6144 | H48: 1516.59 | I48: =SUM(D48,F48,G48,H48) -> 38290.9844 | J48: =SUM(D48,F48,H48) -> 35672.37
A49: 20 | B49: 22093 | C49: =ROUND(D49/12,2) -> 2846.32 | D49: =ROUND(B49*$F$3,2) -> 34155.78 | E49: 0 | F49: =E49*12 -> 0 | G49: =(C49+E49)*0.92 -> 2618.6144 | H49: 1516.59 | I49: =SUM(D49,F49,G49,H49) -> 38290.9844 | J49: =SUM(D49,F49,H49) -> 35672.37
A50: administratief assistent (Niveau C - begeleiding - diploma Hoger Secundair onderwijs)
A51: ancien. | B51: basis '95 | C51: maand | D51: jaar | E51: H&S /mnd | F51: H&S/jaar | G51: V.G. | H51: E.P. | I51: TOT. | J51: TOT - V.G.
A52: 0 | B52: 14273.7 | C52: =ROUND(D52/12,2) -> 1838.93 | D52: =ROUND(B52*$F$3,2) -> 22067.14 | E52: 46.37 | F52: =E52*12 -> 556.44 | G52: =(C52+E52)*0.92 -> 1734.476 | H52: =ROUND(662.7+2.5%*(D52+F52),2) -> 1228.29 | I52: =SUM(D52,F52,G52,H52) -> 25586.346 | J52: =SUM(D52,F52,H52) -> 23851.87
A53: 1 | B53: 14541.01 | C53: =ROUND(D53/12,2) -> 1873.37 | D53: 22480.4 | E53: 46.37 | F53: =E53*12 -> 556.44 | G53: =(C53+E53)*0.92 -> 1766.1608 | H53: =ROUND(662.7+2.5%*(D53+F53),2) -> 1238.62 | I53: =SUM(D53,F53,G53,H53) -> 26041.6208 | J53: =SUM(D53,F53,H53) -> 24275.46
A54: 2 | B54: 14808.32 | C54: 1907.81 | D54: 22893.66 | E54: 46.37 | F54: 556.44 | G54: 1797.8456 | H54: 1248.95 | I54: 26496.8956 | J54: 24699.05
A55: 3 | B55: 15075.63 | C55: 1942.24 | D55: 23306.92 | E55: 46.37 | F55: 556.44 | G55: 1829.5212 | H55: 1259.28 | I55: 26952.1612 | J55: 25122.64
A56: 4 | B56: 15075.63 | C56: 1942.24 | D56: 23306.92 | E56: 46.37 | F56: 556.44 | G56: 1829.5212 | H56: 1259.28 | I56: 26952.1612 | J56: 25122.64
A57: 5 | B57: 15431.97 | C57: 1988.15 | D57: 23857.83 | E57: 46.37 | F57: 556.44 | G57: 1871.7584 | H57: 1273.06 | I57: 27559.0884 | J57: 25687.33
A58: 6 | B58: 15431.97 | C58: 1988.15 | D58: 23857.83 | E58: 46.37 | F58: 556.44 | G58: 1871.7584 | H58: 1273.06 | I58: 27559.0884 | J58: 25687.33
A59: 7 | B59: 15788.31 | C59: 2034.06 | D59: 24408.73 | E59: 46.37 | F59: 556.44 | G59: 1913.9956 | H59: 1286.83 | I59: 28165.9956 | J59: 26252
A60: 8 | B60: 15788.31 | C60: 2034.06 | D60: 24408.73 | E60: 46.37 | F60: 556.44 | G60: 1913.9956 | H60: 1286.83 | I60: 28165.9956 | J60: 26252
A61: 9 | B61: 16411.92 | C61: 2114.4 | D61: 25372.83 | E61: 23.19 | F61: 278.28 | G61: 1966.5828 | H61: 1303.98 | I61: 28921.6728 | J61: 26955.09
A62: 10 | B62: 16411.92 | C62: 2114.4 | D62: 25372.83 | E62: 23.19 | F62: 278.28 | G62: 1966.5828 | H62: 1303.98 | I62: 28921.6728 | J62: 26955.09
A63: 11 | B63: 17035.53 | C63: 2194.74 | D63: 26336.93 | E63: 23.19 | F63: 278.28 | G63: 2040.4956 | H63: 1328.08 | I63: 29983.7856 | J63: 27943.29
A64: 12 | B64: 17035.53 | C64: 2194.74 | D64: 26336.93 | E64: 23.19 | F64: 278.28 | G64: 2040.4956 | H64: 1328.08 | I64: 29983.7856 | J64: 27943.29
A65: 13 | B65: 17659.14 | C65: =ROUND(D65/12,2) -> 2275.09 | D65: 27301.03 | E65: 23.19 | F65: 278.28 | G65: =(C65+E65)*0.92 -> 2114.4176 | H65: 1352.18 | I65: =SUM(D65,F65,G65,H65) -> 31045.9076 | J65: =SUM(D65,F65,H65) -> 28931.49
A66: 14 | B66: 17659.14 | C66: 2275.09 | D66: 27301.03 | E66: 23.19 | F66: 278.28 | G66: 2114.4176 | H66: 1352.18 | I66: 31045.9076 | J66: 28931.49
A67: 15 | B67: 18282.75 | C67: 2355.43 | D67: 28265.13 | E67: 23.19 | F67: 278.28 | G67: 2188.3304 | H67: 1376.29 | I67: 32108.0304 | J67: 29919.7
A68: 16 | B68: 18282.75 | C68: 2355.43 | D68: 28265.13 | E68: 23.19 | F68: =E68*12 -> 278.28 | G68: 2188.3304 | H68: 1376.29 | I68: 32108.0304 | J68: 29919.7
A69: 17 | B69: 18906.36 | C69: 2435.77 | D69: =ROUND(B69*$F$3,2) -> 29229.23 | E69: 0 | F69: =E69*12 -> 0 | G69: 2240.9084 | H69: 1393.43 | I69: 32863.5684 | J69: 30622.66
A70: 18 | B70: 18906.36 | C70: 2435.77 | D70: 29229.23 | E70: 0 | F70: =E70*12 -> 0 | G70: 2240.9084 | H70: 1393.43 | I70: 32863.5684 | J70: 30622.66
A71: 19 | B71: 19529.97 | C71: =ROUND(D71/12,2) -> 2516.11 | D71: =ROUND(B71*$F$3,2) -> 30193.33 | E71: 0 | F71: =E71*12 -> 0 | G71: =(C71+E71)*0.92 -> 2314.8212 | H71: 1417.53 | I71: =SUM(D71,F71,G71,H71) -> 33925.6812 | J71: =SUM(D71,F71,H71) -> 31610.86
A72: 20 | B72: 19529.97 | C72: =ROUND(D72/12,2) -> 2516.11 | D72: =ROUND(B72*$F$3,2) -> 30193.33 | E72: 0 | F72: =E72*12 -> 0 | G72: =(C72+E72)*0.92 -> 2314.8212 | H72: 1417.53 | I72: =SUM(D72,F72,G72,H72) -> 33925.6812 | J72: =SUM(D72,F72,H72) -> 31610.86
A73: administratief medewerker (Niveau D - geen diplomavereisten)
A74: ancien. | B74: basis '95 | C74: maand | D74: jaar | E74: H&S /mnd | F74: H&S/jaar | G74: V.G. | H74: E.P. | I74: TOT. | J74: TOT - V.G.
A75: 0 | B75: 12951.56 | C75: =ROUND(D75/12,2) -> 1668.59 | D75: =ROUND(B75*$F$3,2) -> 20023.11 | E75: 46.37 | F75: =E75*12 -> 556.44 | G75: =(C75+E75)*0.92 -> 1577.7632 | H75: =ROUND(662.7+2.5%*(D75+F75),2) -> 1177.19 | I75: =SUM(D75,F75,G75,H75) -> 23334.5032 | J75: =SUM(D75,F75,H75) -> 21756.74
A76: 1 | B76: 13091.65 | C76: =ROUND(D76/12,2) -> 1686.64 | D76: 20239.69 | E76: 46.37 | F76: =E76*12 -> 556.44 | G76: 1594.3692 | H76: =ROUND(662.7+2.5%*(D76+F76),2) -> 1182.6 | I76: =SUM(D76,F76,G76,H76) -> 23573.0992 | J76: =SUM(D76,F76,H76) -> 21978.73
A77: 2 | B77: 13231.74 | C77: 1704.69 | D77: 20456.27 | E77: 46.37 | F77: 556.44 | G77: 1610.9752 | H77: 1188.02 | I77: 23811.7052 | J77: 22200.73
A78: 3 | B78: 13371.83 | C78: 1722.74 | D78: 20672.85 | E78: 46.37 | F78: 556.44 | G78: 1627.5812 | H78: 1193.43 | I78: 24050.3012 | J78: 22422.72
A79: 4 | B79: 13371.83 | C79: 1722.74 | D79: 20672.85 | E79: 46.37 | F79: 556.44 | G79: 1627.5812 | H79: 1193.43 | I79: 24050.3012 | J79: 22422.72
A80: 5 | B80: 13566.5 | C80: 1747.82 | D80: 20973.81 | E80: 46.37 | F80: 556.44 | G80: 1650.6548 | H80: 1200.96 | I80: 24381.8648 | J80: 22731.21
A81: 6 | B81: 13566.5 | C81: 1747.82 | D81: 20973.81 | E81: 46.37 | F81: 556.44 | G81: 1650.6548 | H81: 1200.96 | I81: 24381.8648 | J81: 22731.21
A82: 7 | B82: 13761.17 | C82: 1772.9 | D82: 21274.77 | E82: 46.37 | F82: 556.44 | G82: 1673.7284 | H82: 1208.48 | I82: 24713.4184 | J82: 23039.69
A83: 8 | B83: 13761.17 | C83: 1772.9 | D83: 21274.77 | E83: 46.37 | F83: 556.44 | G83: 1673.7284 | H83: 1208.48 | I83: 24713.4184 | J83: 23039.69
A84: 9 | B84: 13955.84 | C84: 1797.98 | D84: 21575.73 | E84: 46.37 | F84: 556.44 | G84: 1696.802 | H84: 1216 | I84: 25044.972 | J84: 23348.17
A85: 10 | B85: 13955.84 | C85: 1797.98 | D85: 21575.73 | E85: 46.37 | F85: 556.44 | G85: 1696.802 | H85: 1216 | I85: 25044.972 | J85: 23348.17
A86: 11 | B86: 14150.51 | C86: 1823.06 | D86: 21876.69 | E86: 46.37 | F86: 556.44 | G86: 1719.8756 | H86: 1223.53 | I86: 25376.5356 | J86: 23656.66
A87: 12 | B87: 14150.51 | C87: 1823.06 | D87: 21876.69 | E87: 46.37 | F87: 556.44 | G87: 1719.8756 | H87: 1223.53 | I87: 25376.5356 | J87: 23656.66
A88: 13 | B88: 14345.18 | C88: =ROUND(D88/12,2) -> 1848.14 | D88: 22177.65 | E88: 46.37 | F88: 556.44 | G88: =(C88+E88)*0.92 -> 1742.9492 | H88: 1231.05 | I88: =SUM(D88,F88,G88,H88) -> 25708.0892 | J88: =SUM(D88,F88,H88) -> 23965.14
A89: 14 | B89: 14345.18 | C89: 1848.14 | D89: 22177.65 | E89: 46.37 | F89: 556.44 | G89: 1742.9492 | H89: 1231.05 | I89: 25708.0892 | J89: 23965.14
A90: 15 | B90: 14669.29 | C90: 1889.89 | D90: 22678.72 | E90: 46.37 | F90: 556.44 | G90: 1781.3592 | H90: 1243.58 | I90: 26260.0992 | J90: 24478.74
A91: 16 | B91: 14669.29 | C91: 1889.89 | D91: 22678.72 | E91: 46.37 | F91: =E91*12 -> 556.44 | G91: 1781.3592 | H91: 1243.58 | I91: 26260.0992 | J91: 24478.74
A92: 17 | B92: 14993.4 | C92: 1931.65 | D92: 23179.8 | E92: 46.37 | F92: =E92*12 -> 556.44 | G92: 1819.7784 | H92: 1256.11 | I92: 26812.1284 | J92: 24992.35
A93: 18 | B93: 14993.4 | C93: 1931.65 | D93: =ROUND(B93*$F$3,2) -> 23179.8 | E93: 46.37 | F93: =E93*12 -> 556.44 | G93: 1819.7784 | H93: 1256.11 | I93: 26812.1284 | J93: 24992.35
A94: 19 | B94: 15317.51 | C94: =ROUND(D94/12,2) -> 1973.41 | D94: =ROUND(B94*$F$3,2) -> 23680.87 | E94: 46.37 | F94: =E94*12 -> 556.44 | G94: =(C94+E94)*0.92 -> 1858.1976 | H94: 1268.63 | I94: =SUM(D94,F94,G94,H94) -> 27364.1376 | J94: =SUM(D94,F94,H94) -> 25505.94
A95: 20 | B95: 15317.51 | C95: =ROUND(D95/12,2) -> 1973.41 | D95: =ROUND(B95*$F$3,2) -> 23680.87 | E95: 46.37 | F95: =E95*12 -> 556.44 | G95: =(C95+E95)*0.92 -> 1858.1976 | H95: 1268.63 | I95: =SUM(D95,F95,G95,H95) -> 27364.1376 | J95: =SUM(D95,F95,H95) -> 25505.94
A97: - Opmerking 1: | D97: Bedragen vakantiegeld (V.G.) en eindejaarspremie (E.P.) zijn indicatief.
D98: Voor deze berekeningen zullende verplichtingen van de paritaire comité's
D99: gerespecteerd worden op basis van de brutolonen zoals aangegeven.
A100: - Opmerking 2: | D100: De patronale bijdragen komen integraal voor subsidiëring in aanmerking.
